[Event "Reykjavik Open 2024"]
[Site "Reykjavik"]
[Date "2024.03.17"]
[Round "4.17"]
[White "Hopman, Pieter"]
[Black "Kjartansson, Gudmundur"]
[Result "0-1"]
[ECO "B51"]
[WhiteElo "2297"]
[BlackElo "2465"]
[Annotator "TA"]
[PlyCount "68"]
[EventDate "2024.03.12"]
[EventCountry "ISL"]
[SourceTitle "playchess.com"]
[Source "ChessBase"]
[SourceQuality "1"]
[TimeControl "40/5400+30:1800+30"]

{[%evp 9,68,8,32,18,42,38,32,46,51,42,93,98,86,0,12,-8,-11,-52,-6,-13,-15,0,0,7,7,5,2,2,3,6,0,0,4,8,19,0,-7,-37,-28,-42,-47,-77,-71,-145,-146,-146,-64,-109,-103,-98,-98,-100,-89,-103,-78,-29985,-29986,-29991,-29991,-29992,-29993]} 1. e4 {[%emt 0:00:02]} c5 {[%emt 0:00:21]} 2. Nf3 {[%emt 0:00:16]} d6 {[%emt 0:00:08]} 3. Bb5+ {[%emt 0:00:24]} Nd7 {[%emt 0:01:00]} 4. Ba4 {[%emt 0:00:27]} Ngf6 {[%emt 0:01:42]} 5. O-O {[%emt 0:00:13]} a6 {[%emt 0:03:22][%cal Ob7b5]} 6. c4 {[%emt 0:03:12]} Nxe4 {[%emt 0:02:33]} 7. Re1 {[%emt 0:03:06]} Nef6 {[%emt 0:02:15]} 8. d4 {[%emt 0:00:56] White is slightly better.} cxd4 {[%emt 0:01:23]} 9. Nxd4 {[%emt 0:10:55] Threatens to win with Bg5.} g6 {[%emt 0:00:55] [#]} (9... e5 $14) 10. Bf4 $1 $16 {[%emt 0:03:53][%cal Ob1c3][%mdl 1024] White has strong compensation.} e5 {[%emt 0:05:29]} 11. Nc2 {[%emt 0:09:35]} (11. Nc3 $16) 11... h6 {[%emt 0:04:09] Wards off Bg5} 12. Nc3 {[%emt 0:01:20][%cal Oc4c5] Strongly threatening c5!} Be7 {[%emt 0:00:47]} 13. Ne3 {[%emt 0:00:52]} Kf8 {[%emt 0:29:48]} (13... exf4 $6 14. Ned5 Nxd5 15. Nxd5 $16) (13... b5 $15 14. cxb5 exf4 (14... axb5 15. Bxb5 Nh5 16. Bg3 $16)) 14. Ned5 $11 {[%emt 0:06:43]} Nc5 {[%emt 0:00:00]} 15. Be3 {[%emt 0:03:04]} Nxa4 {[%emt 0:00:47]} 16. Qxa4 {[%emt 0:00:17]} Nxd5 {[%emt 0:03:20]} 17. Nxd5 {[%emt 0:00:15] Hoping for Bb6.} Be6 $1 {[%emt 0:02:21]} 18. Rad1 {[%emt 0:04:17]} Bxd5 {[%emt 0:10:05]} 19. Rxd5 {[%emt 0:00:16] Threatening c5.} Qc7 {[%emt 0:00:26]} 20. f4 {[%emt 0:05:09]} Qc6 {[%emt 0:04:42]} 21. Qb4 {[%emt 0:03:38]} Re8 {[%emt 0:04:02]} 22. Qc3 {[%emt 0:07:59]} Bf6 {[%emt 0:05:34]} 23. Red1 {[%emt 0:03:08]} Re6 {[%emt 0:00:37]} 24. Qb4 {[%emt 0:09:51][%cal Rd5d6]} Kg7 {[%emt 0:05:30]} 25. b3 {[%emt 0:03:02]} Rhe8 {[%emt 0:01:10]} 26. a4 {[%emt 0:00:45]} (26. Rxd6 Qe4 27. Qc3 exf4 28. Rxe6 Bxc3 $11 (28... Rxe6 29. Bd4 $17)) (26. h3 $142) 26... exf4 $17 {[%emt 0:01:45]} 27. Bxf4 {[%emt 0:00:24][%cal Od1f1]} Be5 {[%emt 0:00:12]} (27... Re2 $17 {aiming for ...Qc8.} 28. h3 Rb2 29. Qxd6 Qxd6 (29... Rxb3 $2 30. Qxc6 bxc6 31. Rd6 $19) 30. Rxd6 g5 (30... Rxb3 31. Bxh6+ Kxh6 32. Rxf6 $17)) 28. Bg3 {[%emt 0:03:15]} Bxg3 {[%emt 0:02:28]} 29. hxg3 {[%emt 0:00:07][%cal Rd5d6]} Re3 {[%emt 0:00:10]} 30. Rxd6 {[%emt 0:02:27]} Qe4 {[%emt 0:00:52][%cal Oe3e2] And now ...Re2! would win.} 31. R6d4 {[%emt 0:01:41]} Qc2 {[%emt 0:02:58] Black is more active.} 32. Qxb7 $2 {[%emt 0:04:17][%mdl 8192] [#]} (32. Rf1 $17 R8e7 (32... Qxb3 33. Rd7 $11) (32... Rxg3 33. Qxb7 $11) (32... Rxb3 33. Qd6 $16) 33. Qb6 Rxg3 (33... Qxb3 34. Qf6+ Kh7 35. Rd8 Re8 36. Qxf7+ Kh8 37. Rxe8+ Rxe8 38. Qxe8+ Kh7 39. Rf7#) 34. Qf6+ Kh7 35. Rf2 Qc1+ (35... Qxb3 36. Qxe7) 36. Kh2) 32... Re1+ $1 {[%emt 0:00:32] Black mates.} (32... Qxb3 33. Qxb3 Rxb3 34. Rf4 $17) 33. Rxe1 {[%emt 0:00:19]} Rxe1+ {[%emt 0:00:03]} 34. Kh2 {[%emt 0:00:05]} Qc1 {[%emt 0:00:36] Weighted Error Value: White=0.41/Black=0.09 (flawless) .  Loses game:     	White=1     	---        Mistake:       	White=2     	Black=3      Inaccurate:     	White=5     	---        OK:         	White=8     	Black=13     Best:        	White=1     	Black=2      Strong:       	White=1     	Black=2} 0-1

[Event "Reykjavik Open 2024"]
[Site "Reykjavik"]
[Date "2024.03.17"]
[Round "4.18"]
[White "Stefansson, Vignir Vatnar"]
[Black "Cieslak, Patryk"]
[Result "1-0"]
[ECO "E04"]
[WhiteElo "2464"]
[BlackElo "2325"]
[Annotator "TA"]
[PlyCount "127"]
[EventDate "2024.03.12"]
[EventCountry "ISL"]
[SourceTitle "playchess.com"]
[Source "ChessBase"]
[SourceQuality "1"]
[TimeControl "40/5400+30:1800+30"]

{[%evp 11,127,26,26,0,0,0,-7,-18,0,0,0,-7,-2,-33,-25,-20,-31,-17,-20,-29,-30,-40,-54,-47,13,0,0,0,29,24,34,7,12,13,14,7,10,6,12,6,6,0,0,0,20,0,0,0,0,0,12,9,9,9,24,0,0,0,17,12,12,12,12,14,12,0,12,14,14,8,18,7,77,59,57,71,98,126,296,284,297,295,281,243,3536,2357,29970,29971,29971,29972,29972,29971,29971,5447,29976,29977,29977,29978,29978,29979,29979,29980,29980,29981,29981,29982,29981,29983,29983,29984,29984,29985,29985,29986,29986,29987,29987,29987]} 1. d4 {[%emt 0:00:02]} d5 {[%emt 0:00:03]} 2. c4 {[%emt 0:00:09]} e6 {[%emt 0:00:06]} 3. Nf3 {[%emt 0:00:08]} Nf6 {[%emt 0:00:05]} 4. g3 {[%emt 0:00:12]} dxc4 {[%emt 0:00:07]} 5. Bg2 {[%emt 0:00:06]} a6 {[%emt 0:00:12]} 6. O-O {[%emt 0:00:42]} Nc6 {[%emt 0:00:22]} 7. Qc2 {[%emt 0:00:07]} Nxd4 {[%emt 0:13:17]} 8. Nxd4 {[%emt 0:01:00]} Qxd4 {[%emt 0:00:03]} 9. Rd1 {[%emt 0:00:07] Die Stellung ist ausgeglichen.} Qc5 {[%emt 0:09:18]} (9... Qa7 {vereinfacht} 10. Be3 Bc5 11. Bxc5 Qxc5 12. Nd2 O-O) 10. Nd2 {[%emt 0:03:59]} Be7 {[%emt 0:09:41]} 11. Nxc4 {[%emt 0:01:54][%cal Ob2b4]} Ng4 {[%emt 0:05:34]} 12. Qa4+ {[%emt 0:37:41]} b5 {[%emt 0:14:42]} 13. Nd6+ {[%emt 0:00:22]} Qxd6 $1 {[%emt 0:00:33]} (13... Bxd6 $2 14. Qxg4 O-O 15. Bxa8 $18) 14. Qc2 {[%emt 0:05:31]} (14. Qxg4 $2 Qxd1+ 15. Bf1 Bb7 $19) 14... Qc5 {[%emt 0:05:24]} 15. Bc6+ {[%emt 0:01:17] [#]} Bd7 $1 {[%emt 0:01:26]} 16. Qxc5 {[%emt 0:11:07]} (16. Bxd7+ Kf8) 16... Bxc5 {[%emt 0:00:02]} 17. Rxd7 {[%emt 0:01:37]} Ne5 {[%emt 0:00:09]} (17... Bxf2+ $15 18. Kg2 Ne5) 18. Rd5+ $11 {[%emt 0:04:21]} (18. Bxa8 Kxd7 (18... Nxd7 19. Bb7 $15) 19. Be4 Rb8 $17) 18... Nxc6 {[%emt 0:00:10][%cal Be5c6,Bc6e7,Be7d5,Bd5b6,Bb6c4][%mdl 32]} 19. Rxc5 {[%emt 0:00:04]} Ne7 {[%emt 0:04:40]} (19... Nd4 $5) 20. Rxc7 {[%emt 0:00:13]} Nd5 {[%emt 0:00:28]} 21. Rc5 {[%emt 0:03:41]} O-O {[%emt 0:00:26]} 22. Bd2 {[%emt 0:00:38]} Nb6 {[%emt 0:05:08]} 23. Ba5 {[%emt 0:07:46]} Nc4 {[%emt 0:02:03]} 24. Bc3 {[%emt 0:02:43]} Rfc8 {[%emt 0:00:31]} 25. Rxc8+ {[%emt 0:00:05]} Rxc8 {[%emt 0:00:01][%mdl 4096] Endspiel. KRB-KRN} 26. Rd1 {[%emt 0:00:08]} h6 {[%emt 0:02:51]} 27. Rd7 {[%emt 0:03:44]} Rc6 {[%emt 0:06:39]} 28. f4 {[%emt 0:03:19]} Nd6 {[%emt 0:03:04]} 29. Kg2 {[%emt 0:02:43]} Ne4 {[%emt 0:00:09]} 30. Bd4 {[%emt 0:00:04]} Rd6 {[%emt 0:07:27]} 31. Rxd6 {[%emt 0:00:09]} Nxd6 {[%emt 0:00:01] KB-KN} 32. Kf3 {[%emt 0:00:23]} f6 {[%emt 0:01:16]} 33. Bc5 {[%emt 0:01:12]} Nc4 {[%emt 0:06:27]} 34. b3 {[%emt 0:03:42]} Na5 {[%emt 0:03:31]} 35. Ke4 {[%emt 0:00:36]} g6 {[%emt 0:00:08][%cal Bg7g6,Bg6h5][%mdl 32]} 36. g4 {[%emt 0:01:37]} Nc6 {[%emt 0:00:16]} 37. f5 {[%emt 0:01:16]} Kf7 {[%emt 0:00:08]} 38. h3 {[%emt 0:01:49]} h5 {[%emt 0:01:48]} 39. fxe6+ {[%emt 0:01:18]} Kxe6 {[%emt 0:00:01]} 40. gxh5 {[%emt 0:00:21]} gxh5 {[%emt 0:00:16]} 41. Ba3 {[%emt 0:30:50]} f5+ {[%emt 0:11:02]} (41... a5 $11 {hält das Gleichgewicht.}) 42. Kf4 $16 {[%emt 0:00:00]} Nd4 {[%emt 0:00:36]} 43. e3 {[%emt 0:00:00]} Ne2+ {[%emt 0:01:35]} 44. Kg5 {[%emt 0:00:00]} Nc3 $2 {[%emt 0:06:14] Verliert die Partie.} (44... Ng1 $16 {ist wohl besser.}) 45. Kxh5 $18 {[%emt 0:00:00]} Nxa2 {[%emt 0:00:14][%cal Of5f4]} 46. Kg6 {[%emt 0:00:00]} Nc3 {[%emt 0:01:34]} 47. h4 {[%emt 0:00:00] Und jetzt h5 wäre schön.} Nd5 $2 {[%emt 0:00:13] [#]} (47... Ne2 48. Kg5 Ng3) 48. h5 $1 {[%emt 0:00:00] Droht h6 und aus.} Nxe3 {[%emt 0:09:48]} 49. h6 {[%emt 0:00:00]} Ng4 {[%emt 0:00:07]} 50. h7 {[%emt 0:00:00]} Ne5+ {[%emt 0:00:01]} 51. Kg7 {[%emt 0:00:00]} Nf7 {[%emt 0:00:11]} 52. b4 {[%emt 0:00:00] Droht Matt per Bc1.} (52. h8=R $2 Nxh8 53. Kh6 Nf7+ 54. Kh5 Ne5 $19) 52... f4 {[%emt 0:00:58][%cal Bf5f4,Bf4f3][%mdl 32]} 53. Bc1 {[%emt 0:00:00] Weiß setzt Matt.} (53. h8=R Nxh8 54. Bc1 f3 55. Be3 Nf7 56. Ba7 Ne5 57. Kh7 Nd3 58. Kh6 f2 (58... Nxb4 $2 59. Kg5 $19) 59. Bxf2 Nxf2 60. Kh5 Nd3 61. Kg5 Nxb4 62. Kf4 Kd5 63. Ke3 a5 64. Ke2 a4 65. Kd2 Kd4 66. Ke2 a3 67. Kf3 a2 68. Kg4 Nd3 (68... a1=B 69. Kf5 Nd3 70. Kg5 b4 71. Kf5 b3 72. Kg4 b2 73. Kh4 b1=Q 74. Kh5 Ne5 75. Kh4 Qg1 76. Kh3 Kc4 77. Kh4 Qg4#) 69. Kg5 a1=Q (69... a1=B 70. Kh4 b4 71. Kh3 b3 72. Kh4 b2 73. Kh5 Nf4+ 74. Kg5 Ke5 75. Kh4 b1=Q 76. Kg3 Qg6+ 77. Kh4 Nh5 78. Kh3 Qg3#) 70. Kf6 Qg1 71. Ke6 Ne5 72. Kd6 Qg7 (72... Qg6+ 73. Kc7 Qc6+ 74. Kb8 Nd7+ 75. Ka7 Qc7+ 76. Ka8 Qb8#) 73. Ke6 Qf7+ 74. Kd6 Qd7#) 53... f3 {[%emt 0:00:02]} 54. Be3 {[%emt 0:00:00]} (54. h8=R Nxh8 55. Be3 Nf7 56. Bg1 Ne5 57. Kh6 Nd3 (57... Ng4+ 58. Kh5 f2 59. Bxf2 Nxf2 60. Kh4 Nd3 61. Kg5 Ke5 62. Kg4 Nxb4 63. Kf3 Nd5 64. Kf2 Kd4 65. Kg2 b4 66. Kh3 b3 67. Kh2 b2 68. Kg3 b1=Q 69. Kg4 Qg6+ 70. Kf3 Ne3 71. Ke2 Qg2+ 72. Ke1 Qf1+ 73. Kd2 Qd1#) 58. Kg5 f2 (58... Nxb4 $2 59. Kg4 $19) 59. Bxf2 Nxf2 60. Kf4 Nd3+ 61. Ke4 Nxb4 62. Kd4 Kd6 63. Ke4 a5 64. Ke3 Ke5 65. Ke2 a4 66. Kd2 Kd4 67. Ke2 a3 68. Kf3 a2 69. Kg4 Nd3 (69... a1=B 70. Kh3 Nd3 71. Kg2 b4 72. Kh1 b3 73. Kh2 b2 74. Kg2 b1=Q 75. Kh2 Ke4 76. Kh3 Nf4+ 77. Kh2 Bf6 78. Kg3 Qg1#) (69... a1=Q 70. Kf5 Qf1+ 71. Kg6 Nc6 72. Kh5 Qf4 73. Kg6 Ne5+ 74. Kh7 Qf7+ 75. Kh8 Ng6#) 70. Kh4 a1=Q (70... a1=B 71. Kh5 b4 72. Kh4 b3 73. Kg5 b2 74. Kh4 b1=Q 75. Kh5 Qg1 76. Kh4 Ke5 77. Kh5 Kf5 78. Kh6 Qh2#) 71. Kg5 Qg1+ 72. Kf6 Ne5 73. Ke7 Qg7+ 74. Ke8 Qd7+ 75. Kf8 Qf7#) 54... Ke7 {[%emt 0:00:48]} 55. Bf2 {[%emt 0:00:00]} (55. h8=R $2 Nxh8 56. Kxh8 Ke6 $19) 55... Ke6 {[%emt 0:00:45]} 56. Bc5 {[%emt 0:00:00]} (56. h8=R $2 Nxh8 57. Kxh8 Kd5 $19) 56... a5 {[%emt 0:00:52]} 57. bxa5 {[%emt 0:00:00]} (57. h8=R Nxh8 58. bxa5 Kd5 $17) 57... b4 {[%emt 0:00:01]} 58. a6 $1 {[%emt 0:00:00]} (58. h8=R Nxh8 59. a6 (59. Kxh8 $2 Kd5 $19) 59... b3 $11) 58... b3 {[%emt 0:00:10]} 59. a7 {[%emt 0:00:00]} (59. h8=R Nxh8 60. a7 b2 $16) 59... b2 {[%emt 0:00:02]} 60. a8=Q {[%emt 0:00:00]} (60. a8=B b1=Q (60... b1=B 61. h8=Q $16) 61. Bd4 Qb4) 60... b1=Q {[%emt 0:00:04]} 61. Qe8+ {[%emt 0:00:00]} (61. h8=R Qb2+ 62. Kh7 Qh2+ (62... Qxh8+ 63. Qxh8 Nxh8 64. Kxh8 $11) 63. Kg7 Qe5+ (63... Nxh8 64. Qc6+ Kf5 65. Qf6+ Ke4 66. Qd4+ Kf5 67. Qd7+ Ke4 68. Qd4+ Kf5 69. Qd7+ Ke4 70. Qc6+ Kf5 71. Qc8+ Ke4 72. Qc6+ Kf5 $11) (63... Qxh8+ 64. Qxh8 Nxh8 65. Kxh8 $11) 64. Kh7 Qh5+ (64... Qxc5 65. Qe4+ Kd6 66. Qf4+ Ke7 67. Qh4+ Kd7 68. Qg4+ Ke7 69. Rc8 $11) (64... Qxh8+ 65. Qxh8 Nxh8 66. Kxh8 $11) (64... Nxh8 65. Qc6+ Kf5 66. Qxf3+ Qf4 67. Qh5+ Qg5 68. Qh3+ Qg4 69. Qxg4+ Kxg4 70. Kxh8 $11) 65. Kg7 Qe5+ (65... Qxc5 $2 66. Qa2+ Qd5 67. Re8+ Kd6 68. Qa3+ Kd7 69. Qe7+ Kc6 70. Rc8+ Kb5 71. Qxf7 $18) (65... Nxh8 66. Qc6+ Kf5 67. Qd5+ Kg4 68. Qxh5+ Kxh5 69. Kxh8 $11) (65... Qxh8+ 66. Qxh8 Nxh8 67. Kxh8 $11) 66. Kh7 Qh5+ (66... Qxc5 67. Re8+ Kf6 68. Qxf3+ Qf5+ 69. Qxf5+ Kxf5 70. Kg7 $11) (66... Qxh8+ 67. Qxh8 Nxh8 68. Kxh8 $11) (66... Nxh8 67. Qc6+ Kf5 68. Qxf3+ Ke6 69. Qc6+ Kf5 70. Qh6 $11) 67. Kg7 Qg5+ (67... Qxc5 68. Qa2+ Qd5 69. Re8+ Kd6 70. Qa6+ Kd7 71. Qa4+ Kd6 72. Qb4+ Kc6 73. Rc8+ Kd7 74. Rc5 $18) (67... Nxh8 68. Qe4+ Qe5+ 69. Qxe5+ Kxe5 70. Kxh8 $11) (67... Qxh8+ 68. Qxh8 Nxh8 69. Kxh8 $11) 68. Kf8 Qxc5+ (68... Nxh8 69. Qe4+ Qe5 70. Qc6+ Kf5 71. Qxf3+ Qf4 72. Qxf4+ Kxf4 73. Kg8 $11) 69. Kg8 Qg5+ 70. Kf8 Nxh8 $11) 61... Kd5 {[%emt 0:00:11]} 62. Qxf7+ {[%emt 0:00:00]} Kxc5 {[%emt 0:00:18]} 63. h8=Q {[%emt 0:00:00]} ({Nicht} 63. h8=R Qb2+ 64. Kh7 Qh2+ 65. Kg8 Qb8+ 66. Kg7 Qe5+ 67. Qf6 Qxf6+ 68. Kxf6 f2 $11) 63... Qb2+ {[%emt 0:00:36]} 64. Kg8 {[%emt 0:00:00] Gewichteter Fehlerwert: Weiß=0.04 (makellos) /Schwarz=0.32.  Verlustzug:     	---       	Schwarz=1     Fehler:       	---       	Schwarz=3     Ungenau:       	Weiß=2     	Schwarz=3     OK:         	Weiß=18    	Schwarz=12    Bester:       	Weiß=3     	Schwarz=3     Stark:        	Weiß=1     	Schwarz=1     Brilliant:      	---       	Schwarz=1} 1-0

[Event "Reykjavik Open 2024"]
[Site "Reykjavik"]
[Date "2024.03.17"]
[Round "4.19"]
[White "Wadsworth, Matthew J"]
[Black "Soderstrom, Adrian"]
[Result "1-0"]
[ECO "D74"]
[WhiteElo "2450"]
[BlackElo "2288"]
[Annotator "TA"]
[PlyCount "115"]
[EventDate "2024.03.12"]
[EventCountry "ISL"]
[SourceTitle "playchess.com"]
[Source "ChessBase"]
[SourceQuality "1"]
[TimeControl "40/5400+30:1800+30"]

{[%evp 21,115,18,12,0,0,13,15,26,40,21,20,33,33,25,64,0,17,24,35,32,15,9,52,47,64,52,95,101,98,96,100,89,93,93,141,152,152,149,190,180,44,196,164,162,156,160,185,163,188,183,162,132,118,120,217,204,373,338,350,339,786,545,877,637,1078,970,1921,2044,1070,831,1514,1446,1726,1529,2647,2228,3692,1223,5398,2768,29975,29977,29978,29979,29978,29980,29978,29975,29978,29979,29979,29980,29980,29981,29982,29981]} 1. Nf3 {[%emt 0:00:03]} d5 {[%emt 0:00:11]} 2. g3 {[%emt 0:00:10]} g6 {[%emt 0:01:14]} 3. Bg2 {[%emt 0:00:13]} Bg7 {[%emt 0:00:04]} 4. d4 {[%emt 0:00:10][%cal Bd2d4,Bd4d5][%mdl 32]} Nf6 {[%emt 0:00:05]} 5. O-O {[%emt 0:00:11]} O-O {[%emt 0:00:03]} 6. c4 {[%emt 0:00:22]} Nc6 {[%emt 0:00:53][%cal Bb8c6,Bc6a5,Ba5c4][%mdl 32]} 7. cxd5 {[%emt 0:01:40]} Nxd5 {[%emt 0:00:03]} 8. e4 {[%emt 0:00:11]} Nb6 {[%emt 0:00:03]} 9. d5 {[%emt 0:00:23]} Na5 {[%emt 0:00:03]} 10. Qe1 {[%emt 0:00:38]} Nac4 {[%emt 0:00:08]} 11. Nc3 {[%emt 0:00:33]} e6 {[%emt 0:00:12][%cal Re6d5]} 12. Bg5 {[%emt 0:00:16]} f6 {[%emt 0:00:06]} 13. Bc1 {[%emt 0:00:18]} exd5 {[%emt 0:00:03]} 14. exd5 {[%emt 0:00:26] The position is equal.} Nxd5 {[%emt 0:00:06]} 15. Nd4 {[%emt 0:01:10]} Nxc3 {[%emt 0:00:06]} 16. Qxc3 {[%emt 0:00:25]} Ne5 {[%emt 0:00:11]} 17. Rd1 {[%emt 0:02:52]} c5 {[%emt 0:01:21]} 18. Qb3+ {[%emt 0:16:46]} ({Better is} 18. Qxc5 $14 Bg4 19. Rd2) 18... Kh8 {[%emt 0:09:12] [#]} 19. Nc6 {[%emt 0:09:38]} Qc7 {[%emt 0:03:07]} (19... Qb6 20. Nxe5) 20. Nxe5 {[%emt 0:03:28]} fxe5 {[%emt 0:00:16]} 21. Be3 {[%emt 0:04:50] Black should prevent Rdc1.} Rb8 {[%emt 0:06:52]} 22. Qc4 $1 {[%emt 0:03:34]} b6 {[%emt 0:00:57][%cal Bb7b6,Bb6c5][%mdl 32]} 23. b4 $1 {[%emt 0:01:07][%cal Rb4c5] White has more active pieces.} Bb7 {[%emt 0:06:48]} 24. Bxb7 {[%emt 0:06:11]} Qxb7 {[%emt 0:02:57]} 25. bxc5 {[%emt 0:00:16]} bxc5 {[%emt 0:11:31]} 26. Rd5 {[%emt 0:07:10]} Rbc8 {[%emt 0:11:07]} 27. Rc1 {[%emt 0:07:56]} ({But not} 27. Bxc5 $6 Rxf2 28. Rad1 Rf5 $14) 27... Rfd8 {[%emt 0:05:00]} (27... a5 $142 28. Rxc5 (28. Bxc5 Rfe8 $16) 28... Rxc5 29. Qxc5 a4) 28. Rxd8+ {[%emt 0:01:48]} Rxd8 {[%emt 0:00:02]} 29. Qxc5 {[%emt 0:00:14]} ({Resist} 29. Bxc5 Rc8 $16) 29... Qf3 {[%emt 0:01:10]} 30. Qxa7 {[%emt 0:06:39]} Rd1+ {[%emt 0:01:32]} 31. Rxd1 {[%emt 0:00:02]} Qxd1+ $14 {[%emt 0:00:07][%mdl 4096] Endgame. KQB-KQB} 32. Kg2 {[%emt 0:00:10] White wants to mate with Qa8+.} Qd5+ {[%emt 0:00:22]} 33. f3 {[%emt 0:01:04] Qb8+ would now be deadly.} h5 {[%emt 0:00:20]} 34. Qb8+ {[%emt 0:03:24]} Kh7 {[%emt 0:00:02]} 35. Qb3 {[%emt 0:00:10] Prevents e4.} Qc6 {[%emt 0:03:18]} 36. Qb1 {[%emt 0:02:11]} Qc4 {[%emt 0:10:26]} 37. Bf2 {[%emt 0:01:41]} Qa4 {[%emt 0:01:12]} (37... e4 $16) 38. Qb3 {[%emt 0:01:57]} Qc6 {[%emt 0:00:23]} (38... Qa6 {might work better.} 39. Qc2 Qd6) 39. Qb4 $18 {[%emt 0:01:36]} Qc2 {[%emt 0:12:25]} 40. a4 {[%emt 0:00:17]} Qc6 $2 {[%emt 0:05:28]} (40... Qa2 41. h4 Bh6 42. Qb7+ Kg8) 41. h4 {[%emt 0:34:04]} Qa8 {[%emt 0:31:45]} 42. Bb6 {[%emt 0:05:24]} Qc6 {[%emt 0:01:48]} 43. a5 {[%emt 0:00:46]} Qd5 {[%emt 0:01:01]} 44. Bf2 {[%emt 0:03:30]} Qa8 {[%emt 0:00:19]} 45. Be1 {[%emt 0:03:37]} Qa6 {[%emt 0:00:27]} 46. Qb6 {[%emt 0:00:00]} Qe2+ {[%emt 0:00:00]} 47. Bf2 {[%emt 0:00:00] aiming for a6.} e4 {[%emt 0:00:00] [#]} 48. fxe4 $1 {[%emt 0:00:00]} Qxe4+ {[%emt 0:00:00]} 49. Kg1 {[%emt 0:00:00] Threatens to win with a6.} Qd5 {[%emt 0:00:00]} 50. a6 {[%emt 0:00:00] Threatening mate with a7.} Qd1+ {[%emt 0:00:00]} 51. Kh2 {[%emt 0:00:00] White mates.} Qf3 {[%emt 0:00:00]} 52. Qe3 {[%emt 0:00:00]} Qa8 {[%emt 0:00:00]} 53. a7 {[%emt 0:00:00]} Qc6 {[%emt 0:00:00]} 54. Qf4 {[%emt 0:00:00]} Qd5 {[%emt 0:00:00]} 55. Qb8 {[%emt 0:00:00]} Qf3 {[%emt 0:00:00]} 56. a8=Q {[%emt 0:00:00]} ({Weaker is} 56. a8=B Qxf2+ 57. Bg2 Kh6 $11) 56... Qxf2+ {[%emt 0:00:00]} 57. Qg2 {[%emt 0:00:00]} Qd4 {[%emt 0:00:00]} 58. Qa2 {[%emt 0:00:00] Weighted Error Value: White=0.16 (very precise) /Black=0.37.  Mistake:       	White=1     	Black=4      Inaccurate:     	White=1     	Black=5      OK:         	White=12    	Black=6      Best:        	White=3     	Black=3      Strong:       	White=2     	---} 1-0